[Event "9th RTU Open 2019"]
[Site "Riga"]
[Date "2019.08.08"]
[Round "6.9"]
[White "Michalik, Peter"]
[Black "Mikaelyan, Arman"]
[Result "1/2-1/2"]
[ECO "B31"]
[WhiteElo "2573"]
[BlackElo "2454"]
[Annotator "ChessBase"]
[PlyCount "189"]
[EventDate "2019.08.05"]
[EventType "swiss"]
[EventCountry "LAT"]
[SourceTitle "playchess.com"]
[Source "ChessBase"]
[SourceQuality "1"]
[TimeControl "5400+30"]

1. e4 {[%emt 0:01:33]} c5 {[%emt 0:03:42]} 2. Nf3 {[%emt 0:00:12]} Nc6 {[%emt 0:00:19]} 3. Bb5 {[%emt 0:00:14]} g6 {[%emt 0:00:24]} 4. Bxc6 {[%emt 0:00:11]} dxc6 {[%emt 0:00:14]} 5. d3 {[%emt 0:00:11]} Bg7 {[%emt 0:00:16]} 6. h3 {[%emt 0:00:08]} Nf6 {[%emt 0:00:34]} 7. Nc3 {[%emt 0:00:10]} Nd7 {[%emt 0:01:33]} 8. Be3 {[%emt 0:01:28]} e5 {[%emt 0:00:44]} 9. Qd2 {[%emt 0:01:35]} h6 {[%emt 0:00:21]} 10. O-O {[%emt 0:01:51]} b6 {[%emt 0:04:04]} 11. a4 {[%emt 0:01:56]} a5 {[%emt 0:03:22]} 12. Nh2 {[%emt 0:00:41]} Nf8 {[%emt 0:01:20]} 13. f4 {[%emt 0:02:18]} exf4 {[%emt 0:00:06]} 14. Bxf4 {[%emt 0:07:42]} Ne6 {[%emt 0:00:52]} 15. Bg3 {[%emt 0:04:19]} c4 {[%emt 0:00:48]} 16. e5 {[%emt 0:03:31]} cxd3 {[%emt 0:01:22]} 17. cxd3 {[%emt 0:03:11]} Qd4+ {[%emt 0:00:40]} 18. Bf2 {[%emt 0:12:22]} Qxe5 {[%emt 0:02:26]} 19. Ng4 {[%emt 0:02:52]} Qd6 {[%emt 0:13:16]} 20. Ne4 {[%emt 0:01:32]} Qd8 {[%emt 0:14:39]} 21. Bg3 {[%emt 0:01:01]} Qd4+ {[%emt 0:08:37]} 22. Kh1 {[%emt 0:02:46]} O-O {[%emt 0:04:21]} 23. Nef6+ {[%emt 0:11:15]} Kh8 {[%emt 0:02:50]} 24. Be5 {[%emt 0:00:06]} Qb4 {[%emt 0:00:40]} 25. Bc3 {[%emt 0:03:59]} Qe7 {[%emt 0:02:38]} 26. Nd7 {[%emt 0:00:52]} f5 {[%emt 0:08:27]} 27. Nxf8 {[%emt 0:00:39]} Nxf8 {[%emt 0:00:35]} 28. Qxh6+ {[%emt 0:02:14]} Kg8 {[%emt 0:00:16]} 29. Qxg7+ {[%emt 0:01:24]} Qxg7 {[%emt 0:00:06]} 30. Bxg7 {[%emt 0:00:02]} Kxg7 {[%emt 0:00:03]} 31. Ne5 {[%emt 0:00:16]} Ba6 {[%emt 0:01:52]} 32. Ra3 {[%emt 0:01:04]} Re8 {[%emt 0:01:00]} 33. Nxc6 {[%emt 0:00:53]} Re2 {[%emt 0:00:46]} 34. Rc3 {[%emt 0:12:28]} Ne6 {[%emt 0:00:57]} 35. Kg1 {[%emt 0:00:44]} Rxb2 {[%emt 0:02:23]} 36. Rf2 {[%emt 0:01:43]} Rb1+ {[%emt 0:00:03]} 37. Kh2 {[%emt 0:00:04]} Nc5 {[%emt 0:00:18]} 38. Ne5 {[%emt 0:00:33]} Rb4 {[%emt 0:01:51]} 39. Rd2 {[%emt 0:01:12]} Kh6 {[%emt 0:01:50]} 40. Rd1 {[%emt 0:03:31]} Rd4 {[%emt 0:07:12]} 41. Rb1 {[%emt 0:01:27]} Rb4 {[%emt 0:04:07]} 42. Rcc1 {[%emt 0:02:01]} Nxd3 {[%emt 0:00:52]} 43. Nxd3 {[%emt 0:01:18]} Bxd3 {[%emt 0:00:04]} 44. Rxb4 {[%emt 0:01:26]} axb4 {[%emt 0:00:03]} 45. Rd1 {[%emt 0:00:04]} Bc2 {[%emt 0:00:37]} 46. Rd4 {[%emt 0:02:35]} Bxa4 {[%emt 0:00:10]} 47. Rxb4 {[%emt 0:00:07]} b5 {[%emt 0:00:03]} 48. Kg3 {[%emt 0:04:05]} g5 {[%emt 0:00:06]} 49. Kf3 {[%emt 0:03:11]} Kg6 {[%emt 0:00:11]} 50. g3 {[%emt 0:00:29]} Kf6 {[%emt 0:00:11]} 51. Ke3 {[%emt 0:01:07]} Ke5 {[%emt 0:01:03]} 52. h4 {[%emt 0:00:20]} Kf6 {[%emt 0:01:07]} 53. Rb1 {[%emt 0:00:48]} Kg6 {[%emt 0:00:37]} 54. hxg5 {[%emt 0:00:39]} Kxg5 {[%emt 0:00:03]} 55. Kf3 {[%emt 0:00:03]} Kf6 {[%emt 0:03:32]} 56. Kf4 {[%emt 0:01:14]} Ke6 {[%emt 0:00:04]} 57. Rb2 {[%emt 0:00:11]} Kd5 {[%emt 0:01:14]} 58. Ke3 {[%emt 0:00:19]} Ke5 {[%emt 0:01:18]} 59. Rb4 {[%emt 0:00:10]} Kd5 {[%emt 0:00:23]} 60. Kd3 {[%emt 0:00:45]} Ke5 {[%emt 0:00:15]} 61. Kc3 {[%emt 0:00:21]} Kd5 {[%emt 0:00:27]} 62. Rf4 {[%emt 0:00:23]} Ke5 {[%emt 0:00:29]} 63. Kb4 {[%emt 0:00:05]} Ke6 {[%emt 0:00:20]} 64. Kc5 {[%emt 0:00:09]} Ke5 {[%emt 0:00:20]} 65. Rb4 {[%emt 0:00:22]} Ke6 {[%emt 0:01:34]} 66. Rf4 {[%emt 0:03:04]} Ke5 {[%emt 0:00:12]} 67. Rh4 {[%emt 0:01:21]} Kf6 {[%emt 0:00:27]} 68. Rh8 {[%emt 0:00:23]} Ke5 {[%emt 0:01:16]} 69. Re8+ {[%emt 0:00:04]} Kf6 {[%emt 0:00:02]} 70. Kd4 {[%emt 0:00:15]} Bb3 {[%emt 0:01:45]} 71. Ke3 {[%emt 0:00:59]} Kg5 {[%emt 0:00:24]} 72. Rb8 {[%emt 0:00:58]} Bc4 {[%emt 0:00:07]} 73. Rb7 {[%emt 0:00:09]} Bf1 {[%emt 0:00:22]} 74. Rg7+ {[%emt 0:00:38]} Kf6 {[%emt 0:00:04]} 75. Rb7 {[%emt 0:00:36]} Kg5 {[%emt 0:00:04]} 76. Rb6 {[%emt 0:00:15]} Bc4 {[%emt 0:00:07]} 77. Kf3 {[%emt 0:00:44]} Bd5+ {[%emt 0:00:08]} 78. Kf2 {[%emt 0:00:07]} Bc4 {[%emt 0:00:04]} 79. Ke3 {[%emt 0:00:08]} Bf1 {[%emt 0:00:08]} 80. Rd6 {[%emt 0:00:37]} Bc4 {[%emt 0:00:16]} 81. Kf3 {[%emt 0:00:13]} Bb3 {[%emt 0:02:05]} 82. Ke3 {[%emt 0:01:27]} Bc4 {[%emt 0:00:09]} 83. Rb6 {[%emt 0:00:04]} Bf1 {[%emt 0:00:23]} 84. Rb7 {[%emt 0:00:11]} Bc4 {[%emt 0:00:14]} 85. Rc7 {[%emt 0:00:04]} Bf1 {[%emt 0:01:37]} 86. Kf3 {[%emt 0:00:12]} Bd3 {[%emt 0:00:36]} 87. Rc8 {[%emt 0:00:32]} Bc4 {[%emt 0:01:46]} 88. Rc5 {[%emt 0:00:08]} Bd3 {[%emt 0:00:09]} 89. g4 {[%emt 0:01:39]} b4 {[%emt 0:00:31]} 90. Ke3 {[%emt 0:00:42]} Be4 {[%emt 0:00:36]} 91. gxf5 {[%emt 0:00:09]} Bxf5 {[%emt 0:00:03]} 92. Rb5 {[%emt 0:00:03]} Kf6 {[%emt 0:00:45]} 93. Kf4 {[%emt 0:00:07]} Bc2 {[%emt 0:00:18]} 94. Rb6+ {[%emt 0:00:11]} Kf7 {[%emt 0:00:27]} 95. Rxb4 {[%emt 0:00:14]} 1/2-1/2

[Event "9th RTU Open 2019"]
[Site "Riga"]
[Date "2019.08.08"]
[Round "6.10"]
[White "Vogel, Roven"]
[Black "Theodorou, Nikolas"]
[Result "1/2-1/2"]
[ECO "E90"]
[WhiteElo "2456"]
[BlackElo "2543"]
[Annotator "ChessBase"]
[PlyCount "40"]
[EventDate "2019.08.05"]
[EventType "swiss"]
[EventCountry "LAT"]
[SourceTitle "playchess.com"]
[Source "ChessBase"]
[SourceQuality "1"]
[TimeControl "5400+30"]

1. d4 {[%emt 0:00:00]} Nf6 {[%emt 0:06:44]} 2. c4 {[%emt 0:00:00]} g6 {[%emt 0:00:03]} 3. Nc3 {[%emt 0:00:00]} Bg7 {[%emt 0:00:03]} 4. e4 {[%emt 0:00:00]} d6 {[%emt 0:00:03]} 5. h3 {[%emt 0:00:08]} O-O {[%emt 0:00:05]} 6. Be3 {[%emt 0:00:12]} Na6 {[%emt 0:00:05]} 7. Nf3 {[%emt 0:00:15]} c6 {[%emt 0:00:03]} 8. Be2 {[%emt 0:00:46]} e5 {[%emt 0:00:05]} 9. dxe5 {[%emt 0:03:25]} dxe5 {[%emt 0:00:06]} 10. c5 {[%emt 0:00:54]} Nc7 {[%emt 0:10:54]} 11. Nd2 {[%emt 0:08:12]} Ne6 {[%emt 0:04:16]} 12. Nc4 {[%emt 0:00:58]} Nd7 {[%emt 0:02:49]} 13. b4 {[%emt 0:00:50]} a5 {[%emt 0:05:24]} 14. a3 {[%emt 0:04:43]} axb4 {[%emt 0:00:16]} 15. axb4 {[%emt 0:00:01]} Rxa1 {[%emt 0:00:08]} 16. Qxa1 {[%emt 0:00:07]} Nd4 {[%emt 0:07:31]} 17. Bd3 {[%emt 0:04:36]} b6 {[%emt 0:07:04]} 18. Qa7 {[%emt 0:02:26]} bxc5 {[%emt 0:00:47]} 19. bxc5 {[%emt 0:00:16]} Ba6 {[%emt 0:07:44]} 20. O-O {[%emt 0:03:06]} Nxc5 {[%emt 0:06:13]} 1/2-1/2

[Event "9th RTU Open 2019"]
[Site "Riga"]
[Date "2019.08.08"]
[Round "6.11"]
[White "Kjartansson, Gudmundur"]
[Black "Meshkovs, Nikita"]
[Result "0-1"]
[ECO "B31"]
[WhiteElo "2470"]
[BlackElo "2550"]
[Annotator "ChessBase"]
[PlyCount "162"]
[EventDate "2019.08.05"]
[EventType "swiss"]
[EventCountry "LAT"]
[SourceTitle "playchess.com"]
[Source "ChessBase"]
[SourceQuality "1"]
[TimeControl "5400+30"]

1. Nf3 {[%emt 0:00:00]} c5 {[%emt 0:01:03]} 2. e4 {[%emt 0:00:22]} Nc6 {[%emt 0:00:14]} 3. Bb5 {[%emt 0:01:24]} g6 {[%emt 0:00:13]} 4. Bxc6 {[%emt 0:00:33]} dxc6 {[%emt 0:00:10]} 5. d3 {[%emt 0:00:06]} Nf6 {[%emt 0:00:07]} 6. h3 {[%emt 0:06:34]} Nh5 {[%emt 0:01:19]} 7. Be3 {[%emt 0:02:32]} b6 {[%emt 0:03:06]} 8. Qd2 {[%emt 0:08:43]} f6 {[%emt 0:15:44]} 9. a4 {[%emt 0:10:43]} a5 {[%emt 0:03:54]} 10. Na3 {[%emt 0:00:57]} e5 {[%emt 0:02:52]} 11. O-O {[%emt 0:03:30]} Ra7 {[%emt 0:08:16]} 12. Nc4 {[%emt 0:02:15]} Be6 {[%emt 0:01:42]} 13. b3 {[%emt 0:01:18]} Bxc4 {[%emt 0:10:24]} 14. bxc4 {[%emt 0:09:35]} Bd6 {[%emt 0:00:29]} 15. Qe2 {[%emt 0:04:49]} O-O {[%emt 0:01:53]} 16. Nh4 {[%emt 0:04:31]} Kh8 {[%emt 0:04:36]} 17. Nf5 {[%emt 0:06:59]} Bb8 {[%emt 0:01:17]} 18. Ng3 {[%emt 0:00:34]} Nf4 {[%emt 0:01:57]} 19. Qd2 {[%emt 0:12:35]} f5 {[%emt 0:03:04]} 20. f3 {[%emt 0:05:43]} Ne6 {[%emt 0:03:08]} 21. Ne2 {[%emt 0:02:37]} f4 {[%emt 0:00:25]} 22. Bf2 {[%emt 0:00:04]} g5 {[%emt 0:00:57]} 23. g4 {[%emt 0:03:31]} fxg3 {[%emt 0:01:30]} 24. Bxg3 {[%emt 0:00:05]} Rg7 {[%emt 0:09:53]} 25. Rf2 {[%emt 0:02:05]} Rg6 {[%emt 0:00:57]} 26. Raf1 {[%emt 0:00:33]} Qf6 {[%emt 0:00:44]} 27. Kh1 {[%emt 0:01:04]} Rh6 {[%emt 0:01:14]} 28. Rh2 {[%emt 0:00:09]} Rh5 {[%emt 0:01:58]} 29. Rff2 {[%emt 0:03:21]} Rg8 {[%emt 0:00:30]} 30. Qc1 {[%emt 0:01:46]} Rg6 {[%emt 0:00:41]} 31. c3 {[%emt 0:02:09]} Rgh6 {[%emt 0:00:23]} 32. Qf1 {[%emt 0:00:54]} Qd8 {[%emt 0:00:10]} 33. Ng1 {[%emt 0:00:27]} Rg6 {[%emt 0:02:54]} 34. Rd2 {[%emt 0:00:24]} Rg7 {[%emt 0:00:56]} 35. Rd1 {[%emt 0:01:25]} Rh6 {[%emt 0:00:59]} 36. Rdd2 {[%emt 0:00:33]} Bc7 {[%emt 0:00:09]} 37. Ne2 {[%emt 0:00:45]} Rd7 {[%emt 0:00:09]} 38. Ng1 {[%emt 0:01:00]} Ng7 {[%emt 0:02:15]} 39. Rhg2 {[%emt 0:01:23]} Nh5 {[%emt 0:02:02]} 40. Bh2 {[%emt 0:00:11]} Qe7 {[%emt 0:00:03]} 41. Rd1 {[%emt 0:01:06]} Ng7 {[%emt 0:06:04]} 42. Rgd2 {[%emt 0:00:32]} Ne6 {[%emt 0:00:01]} 43. Rg2 {[%emt 0:00:49]} Qf6 {[%emt 0:00:24]} 44. Rgd2 {[%emt 0:00:32]} Rg6 {[%emt 0:00:02]} 45. Rg2 {[%emt 0:00:47]} Rg8 {[%emt 0:00:09]} 46. Rgd2 {[%emt 0:00:12]} Rgd8 {[%emt 0:00:48]} 47. Ne2 {[%emt 0:00:35]} Rf8 {[%emt 0:00:09]} 48. Ng1 {[%emt 0:00:04]} h6 {[%emt 0:00:06]} 49. Qg2 {[%emt 0:00:22]} h5 {[%emt 0:00:29]} 50. Bg3 {[%emt 0:00:53]} Rfd8 {[%emt 0:02:35]} 51. Qf1 {[%emt 0:00:21]} Kg8 {[%emt 0:02:04]} 52. Bh2 {[%emt 0:00:35]} Kf8 {[%emt 0:00:07]} 53. Ne2 {[%emt 0:00:43]} Rf7 {[%emt 0:00:01]} 54. Ng1 {[%emt 0:00:13]} Ke8 {[%emt 0:00:02]} 55. Rf2 {[%emt 0:00:45]} Rdd7 {[%emt 0:01:51]} 56. Ne2 {[%emt 0:00:17]} Kd8 {[%emt 0:00:31]} 57. Ng3 {[%emt 0:00:35]} Ng7 {[%emt 0:00:01]} 58. Kg1 {[%emt 0:00:48]} Kc8 {[%emt 0:00:02]} 59. Qg2 {[%emt 0:00:35]} Rd8 {[%emt 0:00:06]} 60. Kf1 {[%emt 0:00:20]} Kb7 {[%emt 0:00:59]} 61. Ke1 {[%emt 0:00:33]} Qh6 {[%emt 0:00:46]} 62. Ke2 {[%emt 0:00:37]} Rdf8 {[%emt 0:02:20]} 63. Nf1 {[%emt 0:00:05]} Rd7 {[%emt 0:02:10]} 64. Ne3 {[%emt 0:00:12]} Rfd8 {[%emt 0:00:01]} 65. Rff1 {[%emt 0:00:23]} Rf8 {[%emt 0:02:10]} 66. Rg1 {[%emt 0:00:33]} Qf6 {[%emt 0:00:16]} 67. Rdf1 {[%emt 0:00:33]} Bd8 {[%emt 0:00:32]} 68. Rd1 {[%emt 0:00:52]} Qe6 {[%emt 0:00:44]} 69. Kd2 {[%emt 0:00:42]} Rdf7 {[%emt 0:03:49]} 70. Rdf1 {[%emt 0:00:02]} Bf6 {[%emt 0:00:18]} 71. Kc2 {[%emt 0:00:08]} Rd8 {[%emt 0:00:38]} 72. Rd1 {[%emt 0:01:04]} Rfd7 {[%emt 0:00:09]} 73. Rgf1 {[%emt 0:00:21]} Ne8 {[%emt 0:00:25]} 74. Nf5 {[%emt 0:00:42]} Nd6 {[%emt 0:00:02]} 75. Nxd6+ {[%emt 0:00:21]} Rxd6 {[%emt 0:00:08]} 76. Rh1 {[%emt 0:00:31]} b5 {[%emt 0:00:42]} 77. axb5 {[%emt 0:00:21]} cxb5 {[%emt 0:00:01]} 78. Rb1 {[%emt 0:00:45]} b4 {[%emt 0:00:01]} 79. cxb4 {[%emt 0:00:15]} Rxd3 {[%emt 0:00:21]} 80. bxc5+ {[%emt 0:01:03]} Kc7 {[%emt 0:00:01]} 81. Rbd1 {[%emt 0:00:42]} Qxc4+ {[%emt 0:00:07]} 0-1

[Event "9th RTU Open 2019"]
[Site "Riga"]
[Date "2019.08.08"]
[Round "6.12"]
[White "Gukesh D"]
[Black "Lagunow, Raphael"]
[Result "1/2-1/2"]
[ECO "B51"]
[WhiteElo "2520"]
[BlackElo "2427"]
[Annotator "ChessBase"]
[PlyCount "59"]
[EventDate "2019.08.05"]
[EventType "swiss"]
[EventCountry "LAT"]
[SourceTitle "playchess.com"]
[Source "ChessBase"]
[SourceQuality "1"]
[TimeControl "5400+30"]

1. e4 {[%emt 0:00:22]} c5 {[%emt 0:00:39]} 2. Nf3 {[%emt 0:00:26]} Nc6 {[%emt 0:00:11]} 3. Bb5 {[%emt 0:00:13]} d6 {[%emt 0:04:55]} 4. O-O {[%emt 0:01:50]} Bd7 {[%emt 0:00:04]} 5. Re1 {[%emt 0:00:24]} Nf6 {[%emt 0:01:57]} 6. c3 {[%emt 0:02:07]} Ne5 {[%emt 0:03:56]} 7. Nxe5 {[%emt 0:00:42]} dxe5 {[%emt 0:01:51]} 8. a4 {[%emt 0:06:45]} e6 {[%emt 0:06:35]} 9. Na3 {[%emt 0:07:03]} a6 {[%emt 0:08:54]} 10. Bxd7+ {[%emt 0:01:44]} Nxd7 {[%emt 0:00:25]} 11. Qb3 {[%emt 0:07:06]} Rb8 {[%emt 0:03:35]} 12. d3 {[%emt 0:03:38]} Be7 {[%emt 0:02:30]} 13. Be3 {[%emt 0:02:12]} O-O {[%emt 0:01:03]} 14. Red1 {[%emt 0:01:06]} Qc7 {[%emt 0:05:06]} 15. Nc2 {[%emt 0:19:47]} b6 {[%emt 0:06:54]} 16. g3 {[%emt 0:04:46]} Rfc8 {[%emt 0:10:15]} 17. Ne1 {[%emt 0:04:06]} Nf6 {[%emt 0:03:26]} 18. Nf3 {[%emt 0:00:52]} h6 {[%emt 0:07:05]} 19. Qc2 {[%emt 0:04:56]} Rd8 {[%emt 0:02:32]} 20. h3 {[%emt 0:00:53]} Bd6 {[%emt 0:00:54]} 21. Kh2 {[%emt 0:04:37]} Qc6 {[%emt 0:00:57]} 22. c4 {[%emt 0:02:42]} a5 {[%emt 0:05:04]} 23. g4 {[%emt 0:02:03]} Nh7 {[%emt 0:01:51]} 24. Rg1 {[%emt 0:02:11]} Nf8 {[%emt 0:03:00]} 25. h4 {[%emt 0:05:44]} Rb7 {[%emt 0:03:33]} 26. Qe2 {[%emt 0:02:16]} Qe8 {[%emt 0:02:03]} 27. b3 {[%emt 0:03:27]} Rbd7 {[%emt 0:01:11]} 28. Rad1 {[%emt 0:00:14]} Bc7 {[%emt 0:00:50]} 29. Rg2 {[%emt 0:01:57]} Qe7 {[%emt 0:01:51]} 30. Kh3 {[%emt 0:07:48]} 1/2-1/2

[Event "9th RTU Open 2019"]
[Site "Riga"]
[Date "2019.08.08"]
[Round "6.13"]
[White "Usmanov, Vasily"]
[Black "Thybo, Jesper Sondergaard"]
[Result "1/2-1/2"]
[ECO "E16"]
[WhiteElo "2443"]
[BlackElo "2528"]
[Annotator "ChessBase"]
[PlyCount "85"]
[EventDate "2019.08.05"]
[EventType "swiss"]
[EventCountry "LAT"]
[SourceTitle "playchess.com"]
[Source "ChessBase"]
[SourceQuality "1"]
[TimeControl "5400+30"]

1. d4 {[%emt 0:00:00]} Nf6 {[%emt 0:00:00]} 2. Nf3 {[%emt 0:00:00]} d5 {[%emt 0:00:00]} 3. c4 {[%emt 0:00:09]} e6 {[%emt 0:00:00]} 4. g3 {[%emt 0:00:02]} Bb4+ {[%emt 0:00:23]} 5. Nbd2 {[%emt 0:00:45]} O-O {[%emt 0:00:11]} 6. Bg2 {[%emt 0:00:02]} b6 {[%emt 0:00:19]} 7. O-O {[%emt 0:00:46]} Bb7 {[%emt 0:00:07]} 8. Ne5 {[%emt 0:02:43]} Nc6 {[%emt 0:00:24]} 9. a3 {[%emt 0:03:28]} Be7 {[%emt 0:07:57]} 10. cxd5 {[%emt 0:06:04]} exd5 {[%emt 0:00:54]} 11. Ndf3 {[%emt 0:18:48]} Nxe5 {[%emt 0:00:48]} 12. Nxe5 {[%emt 0:00:04]} c5 {[%emt 0:10:24]} 13. b3 {[%emt 0:03:19]} Bd6 {[%emt 0:07:38]} 14. Bg5 {[%emt 0:00:07]} Re8 {[%emt 0:04:42]} 15. Ng4 {[%emt 0:03:01]} Be7 {[%emt 0:00:06]} 16. Bxf6 {[%emt 0:00:44]} Bxf6 {[%emt 0:00:12]} 17. Nxf6+ {[%emt 0:00:16]} Qxf6 {[%emt 0:00:02]} 18. e3 {[%emt 0:05:40]} Rac8 {[%emt 0:03:31]} 19. Rc1 {[%emt 0:02:21]} Red8 {[%emt 0:01:55]} 20. Qd3 {[%emt 0:06:38]} c4 {[%emt 0:05:09]} 21. bxc4 {[%emt 0:00:03]} dxc4 {[%emt 0:00:12]} 22. Qe2 {[%emt 0:01:47]} Bxg2 {[%emt 0:00:38]} 23. Kxg2 {[%emt 0:00:03]} b5 {[%emt 0:03:18]} 24. Rc3 {[%emt 0:00:21]} Rc7 {[%emt 0:04:48]} 25. Rb1 {[%emt 0:00:18]} a6 {[%emt 0:05:42]} 26. a4 {[%emt 0:01:01]} Qd6 {[%emt 0:01:02]} 27. axb5 {[%emt 0:00:07]} axb5 {[%emt 0:00:04]} 28. Qb2 {[%emt 0:00:06]} Rb8 {[%emt 0:03:52]} 29. Qb4 {[%emt 0:00:56]} Qd5+ {[%emt 0:00:21]} 30. Kg1 {[%emt 0:01:15]} g5 {[%emt 0:02:57]} 31. Ra1 {[%emt 0:06:38]} h5 {[%emt 0:01:26]} 32. Ra6 {[%emt 0:02:40]} Rc6 {[%emt 0:08:27]} 33. Rca3 {[%emt 0:03:08]} Rbc8 {[%emt 0:04:25]} 34. e4 {[%emt 0:13:29]} Qxe4 {[%emt 0:14:16]} 35. Qxb5 {[%emt 0:00:04]} Rxa6 {[%emt 0:02:47]} 36. Rxa6 {[%emt 0:00:24]} Qe1+ {[%emt 0:00:15]} 37. Kg2 {[%emt 0:00:02]} Qe7 {[%emt 0:00:15]} 38. Rh6 {[%emt 0:05:49]} Qe4+ {[%emt 0:05:57]} 39. Kg1 {[%emt 0:00:04]} Qe1+ {[%emt 0:00:07]} 40. Kg2 {[%emt 0:00:03]} Qe4+ {[%emt 0:00:04]} 41. Kg1 {[%emt 0:00:04]} Qe7 {[%emt 0:00:06]} 42. Kg2 {[%emt 0:00:01]} Kg7 43. Rxh5 {[%emt 0:00:02]} 1/2-1/2

[Event "9th RTU Open 2019"]
[Site "Riga"]
[Date "2019.08.08"]
[Round "6.14"]
[White "Ostrovskiy, Aleksandr"]
[Black "Nevednichy, Vladislav"]
[Result "0-1"]
[ECO "C01"]
[WhiteElo "2453"]
[BlackElo "2531"]
[Annotator "ChessBase"]
[PlyCount "98"]
[EventDate "2019.08.05"]
[EventType "swiss"]
[EventCountry "LAT"]
[SourceTitle "playchess.com"]
[Source "ChessBase"]
[SourceQuality "1"]
[TimeControl "5400+30"]

1. e4 {[%emt 0:00:00]} e6 {[%emt 0:00:01]} 2. d4 {[%emt 0:00:00]} d5 {[%emt 0:00:03]} 3. Nc3 {[%emt 0:01:01]} Bb4 {[%emt 0:01:06]} 4. exd5 {[%emt 0:00:51]} exd5 {[%emt 0:00:04]} 5. Bd3 {[%emt 0:00:08]} c6 {[%emt 0:01:34]} 6. Qf3 {[%emt 0:01:23]} Qf6 {[%emt 0:00:10]} 7. Bf4 {[%emt 0:01:05]} Bd6 {[%emt 0:09:13]} 8. Bxd6 {[%emt 0:05:37]} Qxd6 {[%emt 0:00:02]} 9. O-O-O {[%emt 0:00:31]} Ne7 {[%emt 0:00:59]} 10. h4 {[%emt 0:02:19]} Nd7 {[%emt 0:04:04]} 11. Qe3 {[%emt 0:12:40]} O-O {[%emt 0:10:08]} 12. Nf3 {[%emt 0:11:10]} Re8 {[%emt 0:03:13]} 13. h5 {[%emt 0:01:45]} Nf8 {[%emt 0:08:05]} 14. h6 {[%emt 0:01:25]} g6 {[%emt 0:00:08]} 15. Rde1 {[%emt 0:01:49]} f6 {[%emt 0:01:59]} 16. Qd2 {[%emt 0:15:45]} Bd7 {[%emt 0:02:50]} 17. Nh2 {[%emt 0:09:26]} Bf5 {[%emt 0:11:31]} 18. Bxf5 {[%emt 0:06:54]} Nxf5 {[%emt 0:00:05]} 19. Nf3 {[%emt 0:00:21]} Rxe1+ {[%emt 0:02:00]} 20. Rxe1 {[%emt 0:01:47]} g5 {[%emt 0:00:06]} 21. Rh1 {[%emt 0:03:08]} Qd7 {[%emt 0:08:59]} 22. Nd1 {[%emt 0:10:30]} Re8 {[%emt 0:00:21]} 23. Qd3 {[%emt 0:05:13]} Ng6 {[%emt 0:00:50]} 24. g3 {[%emt 0:00:11]} Nh8 {[%emt 0:02:30]} 25. g4 {[%emt 0:01:50]} Nd6 {[%emt 0:00:08]} 26. Ne3 {[%emt 0:00:45]} Ng6 {[%emt 0:03:24]} 27. Nd2 {[%emt 0:02:21]} Nf4 {[%emt 0:02:39]} 28. Qf1 {[%emt 0:00:07]} b5 {[%emt 0:00:53]} 29. Qd1 {[%emt 0:01:31]} a5 {[%emt 0:00:57]} 30. Nb3 {[%emt 0:01:04]} Ne4 {[%emt 0:01:31]} 31. Qf3 {[%emt 0:00:31]} a4 {[%emt 0:00:23]} 32. Nd2 {[%emt 0:00:08]} a3 {[%emt 0:09:44]} 33. Nxe4 {[%emt 0:00:03]} axb2+ {[%emt 0:00:54]} 34. Kxb2 {[%emt 0:00:03]} dxe4 {[%emt 0:03:59]} 35. Qd1 {[%emt 0:00:01]} b4 {[%emt 0:02:31]} 36. Nf5 {[%emt 0:03:27]} Ra8 {[%emt 0:01:57]} 37. Re1 {[%emt 0:01:01]} Nd5 {[%emt 0:00:21]} 38. Qe2 {[%emt 0:00:21]} Rxa2+ {[%emt 0:04:29]} 39. Kxa2 {[%emt 0:00:02]} Qa7+ {[%emt 0:00:34]} 40. Kb1 {[%emt 0:00:33]} Nc3+ {[%emt 0:00:05]} 41. Kc1 {[%emt 0:00:02]} Nxe2+ {[%emt 0:00:45]} 42. Rxe2 {[%emt 0:00:01]} Qa1+ {[%emt 0:00:15]} 43. Kd2 {[%emt 0:00:02]} Qc3+ {[%emt 0:00:06]} 44. Kd1 {[%emt 0:00:31]} Qf3 {[%emt 0:00:51]} 45. Nd6 {[%emt 0:02:29]} Qxg4 {[%emt 0:00:54]} 46. Nxe4 {[%emt 0:00:08]} Kf7 {[%emt 0:00:20]} 47. Kd2 {[%emt 0:00:37]} Kg6 {[%emt 0:00:18]} 48. Kd3 {[%emt 0:00:36]} Kxh6 {[%emt 0:00:08]} 49. Re1 {[%emt 0:00:36]} Kg6 {[%emt 0:00:14]} 0-1

[Event "9th RTU Open 2019"]
[Site "Riga"]
[Date "2019.08.08"]
[Round "6.15"]
[White "Grigorov, Grigor"]
[Black "Mammadzada, Gunay"]
[Result "1/2-1/2"]
[ECO "A07"]
[WhiteElo "2501"]
[BlackElo "2427"]
[Annotator "ChessBase"]
[PlyCount "29"]
[EventDate "2019.08.05"]
[EventType "swiss"]
[EventCountry "LAT"]
[SourceTitle "playchess.com"]
[Source "ChessBase"]
[SourceQuality "1"]
[TimeControl "5400+30"]

1. Nf3 {[%emt 0:00:00]} d5 {[%emt 0:05:50]} 2. g3 {[%emt 0:00:00]} c6 {[%emt 0:00:11]} 3. Bg2 {[%emt 0:00:00]} Bg4 {[%emt 0:00:15]} 4. O-O {[%emt 0:00:39]} e6 {[%emt 0:01:59]} 5. c4 {[%emt 0:01:16]} Nf6 {[%emt 0:00:24]} 6. d4 {[%emt 0:00:54]} Nbd7 {[%emt 0:02:38]} 7. cxd5 {[%emt 0:01:45]} exd5 {[%emt 0:03:46]} 8. Nc3 {[%emt 0:02:05]} Bd6 {[%emt 0:02:24]} 9. Nh4 {[%emt 0:00:17]} Nb6 {[%emt 0:12:26]} 10. f3 {[%emt 0:00:19]} Be6 {[%emt 0:00:42]} 11. e4 {[%emt 0:00:23]} Be7 {[%emt 0:09:34]} 12. Nf5 {[%emt 0:23:02]} Bxf5 {[%emt 0:04:30]} 13. exf5 {[%emt 0:01:43]} O-O {[%emt 0:01:26]} 14. b3 {[%emt 0:02:57]} Re8 {[%emt 0:04:40]} 15. Qd3 {[%emt 0:07:21]} 1/2-1/2